bitfinex/quotes_BTCUSD_20251010
["timestamp","ask_amount","ask_price","bid_price","bid_amount"]
[1760128034891,0.33189025,117280.0,117270.0,0.44984977]
[1760128035149,0.00801884,117280.0,117270.0,1.25347493]
[1760128035432,0.33985884,117280.0,117270.0,1.25347493]
[1760128035800,0.33985884,117280.0,117270.0,0.41543574]
[1760128037166,0.00801884,117280.0,117270.0,0.41543574]
[1760128037578,0.0230073,117310.0,117300.0,0.17050298]
[1760128037806,0.50142572,117310.0,117300.0,0.23207298]
[1760128038004,0.50142572,117310.0,117300.0,0.28397298]
[1760128038211,0.05730572,117310.0,117300.0,0.28397298]
[1760128038408,0.50142572,117310.0,117300.0,0.28397298]
[1760128038612,0.03429842,117310.0,117300.0,0.28397298]
[1760128038780,0.03429842,117310.0,117300.0,0.39724694]
[1760128039001,0.68029842,117310.0,117300.0,0.39724694]
[1760128039250,0.03429842,117310.0,117300.0,0.39724694]
[1760128039452,0.72141842,117310.0,117300.0,0.39724694]
[1760128039811,0.03429842,117310.0,117300.0,0.39724694]
[1760128040014,0.72141842,117310.0,117300.0,0.45761621]
[1760128041073,0.72137842,117310.0,117300.0,0.45761621]
[1760128041197,0.03421242,117310.0,117300.0,0.45761621]
[1760128041412,0.03421242,117310.0,117300.0,0.99569287]
[1760128041646,0.36601242,117310.0,117300.0,0.99569287]
[1760128041820,0.01827434,117310.0,117300.0,0.99569287]
[1760128042018,0.20399434,117310.0,117300.0,0.99569287]
[1760128042665,0.01827434,117310.0,117300.0,0.99569287]
[1760128042863,0.19271434,117310.0,117300.0,0.99569287]
[1760128043274,0.35007434,117310.0,117300.0,0.99569287]
[1760128043839,0.10707434,117310.0,117300.0,0.99569287]
[1760128044065,0.3318,117310.0,117300.0,0.99569287]
[1760128044673,0.3318,117310.0,117300.0,0.45761621]
[1760128044887,0.3318,117310.0,117300.0,0.99569287]
[1760128046460,0.3318,117310.0,117300.0,1.06006003]
[1760128046701,0.01978421,117320.0,117310.0,0.17048844]
[1760128046903,0.12467176,117320.0,117310.0,0.38119758]
[1760128047101,0.20507176,117320.0,117310.0,0.95345424]
[1760128047735,0.22807906,117320.0,117310.0,0.95345424]
[1760128048319,0.25877442,117320.0,117310.0,0.95345424]
[1760128048769,0.22807906,117320.0,117310.0,0.95345424]
[1760128048971,0.22807906,117320.0,117310.0,0.41537758]
[1760128049120,0.25877442,117320.0,117310.0,0.95345424]
[1760128049525,0.22807906,117320.0,117310.0,0.95345424]
[1760128049880,0.23605352,117320.0,117310.0,0.95345424]
[1760128050301,0.19710822,117320.0,117310.0,0.95345424]
[1760128050944,0.02790822,117320.0,117310.0,0.95345424]
[1760128051145,0.35966822,117320.0,117310.0,0.95345424]
[1760128051564,0.35966822,117320.0,117310.0,0.41537758]
[1760128051771,0.35966822,117320.0,117310.0,0.95345424]
[1760128053220,0.37803558,117320.0,117310.0,0.95345424]
[1760128053427,0.04627558,117320.0,117310.0,0.95345424]
[1760128053635,0.37803558,117320.0,117310.0,0.41537758]
[1760128054047,0.37803558,117320.0,117310.0,0.95345424]
[1760128054700,0.04627558,117320.0,117310.0,0.98360614]
[1760128054905,0.37803558,117320.0,117310.0,0.98360614]
[1760128055547,0.37799558,117320.0,117310.0,0.98360614]
[1760128056389,0.0232073,117330.0,117320.0,0.51047391]
[1760128056390,0.2432,117330.0,117320.0,0.51047391]
[1760128056593,0.2432,117330.0,117320.0,0.77252524]
[1760128056797,0.2432,117330.0,117320.0,0.43252524]
[1760128057003,0.2432,117330.0,117320.0,0.40230787]
[1760128057210,0.0002,117330.0,117320.0,0.40230787]
[1760128057406,0.33212,117330.0,117320.0,0.40230787]
[1760128057610,0.0002,117330.0,117320.0,0.40230787]
[1760128057908,0.33212,117330.0,117320.0,0.48655032]
[1760128058101,0.24332,117330.0,117320.0,0.48655032]
[1760128058307,0.089,117330.0,117320.0,0.48655032]
[1760128058612,0.33212,117330.0,117320.0,0.48655032]
[1760128058770,0.33212,117330.0,117320.0,0.51590956]
[1760128059105,0.0002,117330.0,117320.0,0.51590956]
[1760128059316,0.0002,117330.0,117320.0,1.05398622]
[1760128059507,0.14748,117330.0,117320.0,1.05398622]
[1760128060095,0.33208,117330.0,117320.0,1.05398622]
[1760128060316,0.33188001,117330.0,117320.0,1.05398622]
[1760128061074,1e-08,117330.0,117320.0,1.05398622]
[1760128061475,0.3783673,117350.0,117340.0,0.20059676]
[1760128061602,0.44412,117350.0,117340.0,0.37150272]
[1760128061848,0.44412,117350.0,117340.0,0.42670272]
[1760128062067,0.08896,117350.0,117340.0,0.96477938]
[1760128062427,0.0002,117350.0,117340.0,0.96477938]
[1760128062626,0.33204,117350.0,117340.0,0.96477938]
[1760128062982,0.0002,117350.0,117340.0,0.96477938]
[1760128063184,0.23756,117350.0,117340.0,0.42670272]
[1760128063360,1e-08,117350.0,117340.0,0.96477938]
[1760128063564,0.13800001,117350.0,117340.0,0.96477938]
[1760128063771,0.18876,117360.0,117350.0,0.17043033]
[1760128063972,0.18891078,117360.0,117350.0,0.9944315]
[1760128064591,0.18891078,117360.0,117350.0,1.05775464]
[1760128065008,0.43215078,117360.0,117350.0,0.51967798]
[1760128065632,0.0230073,117370.0,117360.0,0.17041581]
[1760128065843,0.03089536,117380.0,117370.0,0.20055319]
[1760128065844,0.0232073,117380.0,117370.0,0.20055319]
[1760128066052,0.11246979,117380.0,117370.0,0.42665915]
[1760128066251,0.65054645,117380.0,117370.0,0.40223525]
[1760128066461,0.68124181,117380.0,117370.0,0.40223525]
[1760128066662,0.65054645,117380.0,117370.0,0.40223525]
[1760128067103,0.89390645,117380.0,117370.0,0.40223525]
[1760128067766,0.71094979,117380.0,117370.0,0.40223525]
[1760128067921,0.71094979,117380.0,117370.0,0.46226036]
[1760128068294,0.73720667,117380.0,117370.0,0.46226036]
[1760128068695,0.29332667,117380.0,117370.0,0.46226036]
[1760128068939,0.73720667,117380.0,117370.0,0.46226036]
[1760128069340,0.38204667,117380.0,117370.0,0.37208335]
[1760128069539,0.92012333,117380.0,117370.0,0.40223525]
[1760128069947,0.05000667,117380.0,117370.0,0.40223525]
[1760128070146,0.38200667,117380.0,117370.0,0.40223525]
[1760128070348,0.29324667,117380.0,117370.0,0.40223525]
[1760128070529,0.38200667,117380.0,117370.0,0.46226036]
[1760128071095,0.38200667,117380.0,117370.0,0.40223525]
[1760128071711,0.43573767,117380.0,117370.0,0.40223525]
[1760128072156,0.40504231,117380.0,117370.0,0.40223525]
[1760128072352,0.00060985,117380.0,117370.0,0.94031191]
[1760128072566,0.24380985,117380.0,117370.0,0.40223525]
[1760128072715,0.26612488,117380.0,117370.0,0.4864777]
[1760128074109,0.80420154,117380.0,117370.0,0.40223525]
[1760128074480,0.26612488,117380.0,117370.0,0.40223525]
[1760128075411,0.80420154,117380.0,117370.0,0.40223525]
[1760128075622,0.26612488,117380.0,117370.0,0.40223525]
[1760128075839,0.2432,117380.0,117370.0,0.40223525]
[1760128076040,0.2432,117380.0,117370.0,0.46226036]
[1760128077397,0.78127666,117380.0,117370.0,0.46226036]
[1760128077604,0.84797382,117380.0,117370.0,0.28896129]
[1760128077842,0.84797382,117380.0,117350.0,0.26987498]
[1760128077843,1.57695447,117380.0,117350.0,0.25769184]
[1760128078050,1.23248772,117360.0,117350.0,0.19803033]
[1760128078258,1.62006772,117360.0,117350.0,0.23159033]
[1760128078663,1.62006772,117360.0,117340.0,0.2577071]
[1760128078664,1.59712764,117360.0,117340.0,0.2577071]
[1760128078883,0.63061382,117350.0,117340.0,0.0276]
[1760128079082,0.87401382,117350.0,117340.0,0.19804486]
[1760128079318,1.29197382,117350.0,117340.0,0.28647486]
[1760128080136,1.32173915,117350.0,117340.0,0.28647486]
[1760128080604,0.63453915,117350.0,117340.0,0.28647486]
[1760128080778,1.32173915,117350.0,117340.0,0.28647486]
[1760128081592,1.32273915,117350.0,117340.0,0.28647486]
[1760128081833,0.63553915,117350.0,117340.0,0.28647486]
[1760128082045,0.6514832,117350.0,117340.0,0.28647486]
[1760128082250,1.32269915,117350.0,117340.0,0.28647486]
[1760128083863,0.65850206,117350.0,117340.0,0.28647486]
[1760128084101,1.34570206,117350.0,117340.0,0.28647486]
[1760128084339,0.62873673,117350.0,117340.0,0.28647486]
[1760128084589,1.34224241,117350.0,117340.0,0.28647486]
[1760128086277,1.34220241,117350.0,117340.0,0.28647486]
[1760128087217,1.3717766,117350.0,117340.0,0.28647486]
[1760128087644,1.34220241,117350.0,117340.0,0.28647486]
[1760128089343,1.3342287,117350.0,117340.0,0.28647486]
[1760128089556,1.34220652,117350.0,117340.0,0.28647486]
[1760128090239,0.0503127,117350.0,117340.0,0.28647486]
[1760128090463,1.31924361,117350.0,117340.0,0.28647486]
[1760128091109,0.62562979,117350.0,117340.0,0.4489432]
[1760128091326,1.31916361,117350.0,117340.0,0.39974882]
[1760128091746,1.31916361,117350.0,117340.0,0.28647486]
[1760128091958,1.34212652,117350.0,117340.0,0.28647486]
[1760128092195,1.31916361,117350.0,117340.0,0.28647486]
[1760128093149,0.63212361,117350.0,117340.0,0.28647486]
[1760128093604,1.31924361,117350.0,117340.0,0.28647486]
[1760128095699,0.87532361,117350.0,117340.0,0.28647486]
[1760128095906,1.31920361,117350.0,117340.0,0.28647486]
[1760128096356,1.30083164,117350.0,117340.0,0.28647486]
[1760128096567,0.00897782,117350.0,117340.0,0.33566924]
[1760128096796,1.30083164,117350.0,117340.0,0.33566924]
[1760128097023,1.29285382,117350.0,117340.0,0.33566924]
[1760128097484,1.29285382,117350.0,117340.0,0.28647486]
[1760128097928,0.84889382,117350.0,117340.0,0.28647486]
[1760128098111,1.29277382,117350.0,117340.0,0.28647486]
[1760128099975,0.60577382,117350.0,117340.0,0.28647486]
[1760128100340,0.24408,117350.0,117340.0,0.28647486]
[1760128100519,1.29273382,117350.0,117340.0,0.28647486]
[1760128101107,0.60577382,117350.0,117340.0,0.28647486]
[1760128101318,1.29269382,117350.0,117340.0,0.28647486]
[1760128101495,0.68792,117350.0,117340.0,0.28647486]
[1760128101913,1.29269382,117350.0,117340.0,0.28647486]
[1760128102653,0.08976,117350.0,117340.0,1.05371702]
[1760128102806,0.3328,117350.0,117340.0,1.05371702]
[1760128103014,0.69512,117380.0,117370.0,0.17040129]
[1760128103214,0.04235477,117380.0,117370.0,0.28615129]
[1760128103413,0.04235477,117380.0,117370.0,0.23128129]
[1760128103414,1.12800797,117380.0,117370.0,0.23128129]
[1760128103636,1.46800797,117380.0,117370.0,0.23128129]
[1760128103816,1.45203187,117380.0,117370.0,0.23128129]
[1760128104011,1.45203187,117380.0,117370.0,0.28615129]
[1760128104338,1.03694805,117380.0,117370.0,0.28615129]
[1760128104545,1.64172187,117380.0,117370.0,0.28615129]
[1760128104741,0.34898805,117380.0,117370.0,0.28615129]
[1760128104956,1.64072187,117380.0,117370.0,0.28615129]
[1760128105411,1.64172187,117380.0,117370.0,0.28615129]
[1760128105618,1.21092187,117380.0,117370.0,0.33454]
[1760128105829,0.61376187,117380.0,117370.0,0.33454]
[1760128106016,1.30068187,117380.0,117370.0,0.33454]
[1760128106240,1.20393382,117380.0,117370.0,0.33454]
[1760128106367,1.29269382,117380.0,117370.0,0.28615129]
[1760128106793,0.60577382,117380.0,117370.0,0.39942525]
[1760128107005,1.29269382,117380.0,117370.0,0.39942525]
[1760128107230,0.001,117380.0,117370.0,0.39942525]
[1760128107508,0.93757382,117380.0,117370.0,0.39942525]
[1760128108162,0.93657382,117380.0,117370.0,0.39942525]
[1760128108377,0.93657382,117380.0,117370.0,0.36927335]
[1760128108583,0.93657382,117380.0,117370.0,0.28615129]
[1760128110078,0.3318,117380.0,117370.0,0.28615129]
[1760128110291,0.93657382,117380.0,117370.0,0.28615129]
[1760128111664,0.3318,117380.0,117370.0,0.28615129]
[1760128111872,0.93657382,117380.0,117370.0,0.28615129]
[1760128113333,0.3402,117400.0,117380.0,0.17038677]
[1760128113540,0.34035066,117400.0,117390.0,0.1124]
[1760128113748,1.02715066,117400.0,117390.0,0.1124]
[1760128113964,1.13931066,117400.0,117380.0,0.02494]
[1760128114378,1.16584089,117400.0,117380.0,0.02494]
[1760128114587,1.16584089,117400.0,117380.0,0.079]
[1760128114792,0.02232,117390.0,117380.0,0.02494]
[1760128115028,1.23186764,117390.0,117380.0,0.22872677]
[1760128115450,1.26835764,117390.0,117380.0,0.05834]
[1760128115655,0.68672,117390.0,117380.0,0.28278677]
[1760128116024,1.89626764,117390.0,117380.0,0.28278677]
[1760128116644,1.89726764,117390.0,117380.0,0.28278677]
[1760128117685,1.93375764,117390.0,117380.0,0.05834]
[1760128117904,2.00699764,117390.0,117380.0,0.02494]
[1760128118112,2.00699764,117390.0,117370.0,0.25178076]
[1760128118315,0.60477382,117380.0,117370.0,0.25178076]
[1760128118726,0.60577382,117390.0,117380.0,0.24938677]
[1760128118928,1.29245382,117390.0,117380.0,0.28278677]
[1760128119334,1.29145382,117390.0,117380.0,0.28278677]
[1760128119514,1.89722764,117390.0,117380.0,0.28278677]
[1760128119894,0.001,117390.0,117380.0,0.28278677]
[1760128120244,1.89622764,117390.0,117380.0,0.28278677]
[1760128120390,1.80846764,117390.0,117380.0,0.28278677]
[1760128120592,1.89722764,117390.0,117380.0,0.28278677]
[1760128120799,1.29245382,117390.0,117380.0,0.28278677]
[1760128121098,1.89722764,117390.0,117380.0,0.28278677]
[1760128121309,1.29245382,117390.0,117380.0,0.28278677]
[1760128121955,0.68768,117390.0,117380.0,0.28278677]
[1760128122323,1.29245382,117390.0,117380.0,0.28278677]
[1760128122585,1.29245382,117390.0,117380.0,0.34216492]
[1760128122755,0.68768,117390.0,117380.0,0.34216492]
[1760128122962,1.29245382,117390.0,117380.0,0.28278677]
[1760128123164,0.60577382,117390.0,117380.0,0.28278677]
[1760128123393,1.29245382,117390.0,117380.0,0.28278677]
[1760128123785,0.68768,117390.0,117380.0,0.28278677]
[1760128124048,1.29245382,117390.0,117380.0,0.28278677]
[1760128124610,0.68768,117390.0,117380.0,0.28278677]
[1760128124815,1.29245382,117390.0,117380.0,0.28278677]
[1760128127645,0.68768,117390.0,117380.0,0.28278677]
[1760128127851,1.29245382,117390.0,117380.0,0.28278677]
[1760128128049,0.34,117380.0,117350.0,0.079]
[1760128128250,1.26752764,117360.0,117340.0,0.02494]
[1760128128454,1.31620382,117350.0,117340.0,0.19538486]
[1760128128671,1.29145382,117350.0,117340.0,0.28284486]
[1760128129378,1.29145382,117350.0,117340.0,0.28334735]
[1760128130340,1.29245382,117350.0,117340.0,0.28334735]
[1760128130848,1.29245382,117350.0,117290.0,0.07606]
[1760128130849,0.00852296,117330.0,117290.0,0.07606]
[1760128131065,1.20954764,117300.0,117290.0,0.07621078]
[1760128131250,1.26639764,117300.0,117290.0,0.12732581]
[1760128131501,1.89666764,117300.0,117290.0,0.17804581]
[1760128131711,1.89666764,117300.0,117290.0,0.34856333]
[1760128131923,1.89670764,117300.0,117290.0,0.2823683]
[1760128132146,1.45286764,117300.0,117290.0,0.2823683]
[1760128132372,0.34,117320.0,117300.0,0.17050298]
[1760128132585,1.63189382,117310.0,117300.0,0.25508812]
[1760128132791,1.66634382,117310.0,117300.0,0.23148298]
[1760128133407,1.63189382,117310.0,117300.0,0.28220298]
[1760128133608,1.60063144,117310.0,117300.0,0.28220298]
[1760128133818,1.60063144,117310.0,117300.0,0.23148298]
[1760128134026,1.02744,117310.0,117300.0,0.28220298]
[1760128134236,0.34,117310.0,117300.0,0.34219299]
[1760128134444,1.63536144,117310.0,117300.0,0.23048298]
[1760128134660,1.71087144,117310.0,117290.0,0.20453417]
[1760128134872,0.57351144,117300.0,117290.0,0.20453417]
[1760128135283,0.57351144,117300.0,117290.0,0.24017417]
[1760128135504,0.57351144,117300.0,117290.0,0.29089417]
[1760128135689,0.60796144,117300.0,117290.0,0.24017417]
[1760128135833,0.63000144,117300.0,117290.0,0.24017417]
[1760128136247,0.63000144,117300.0,117290.0,0.29089417]
[1760128136248,0.57351144,117300.0,117290.0,0.29089417]
[1760128136494,0.68302144,117300.0,117290.0,0.00015078]
[1760128136699,1.02302144,117300.0,117290.0,0.00015078]
[1760128137356,1.59653288,117300.0,117290.0,0.00015078]
[1760128137566,1.2532905,117300.0,117290.0,0.00015078]
[1760128137801,1.27795639,117300.0,117290.0,0.00015078]
[1760128138004,6.28515234,117300.0,117290.0,0.00015078]
[1760128138642,6.28615234,117300.0,117290.0,0.00015078]
[1760128138842,7.32875234,117300.0,117290.0,0.00015078]
[1760128139046,7.32775234,117300.0,117290.0,0.00015078]
[1760128139457,7.32875234,117300.0,117290.0,0.00015078]
[1760128139599,6.26163648,117300.0,117290.0,0.00015078]
[1760128139808,7.30435648,117300.0,117290.0,0.00015078]
[1760128140216,7.08901617,117300.0,117290.0,0.00015078]
[1760128140469,7.10733654,117300.0,117290.0,0.00015078]
[1760128141301,7.12070996,117300.0,117290.0,0.00015078]
[1760128141544,7.20495241,117300.0,117290.0,0.00015078]
[1760128141949,7.37545539,117300.0,117290.0,0.00015078]
[1760128142152,7.67545539,117300.0,117290.0,0.00015078]
[1760128142368,7.6984183,117300.0,117290.0,0.00015078]
[1760128143342,7.72907086,117300.0,117290.0,0.00015078]
[1760128143760,7.74338089,117300.0,117290.0,0.00015078]
[1760128144175,8.04338089,117300.0,117290.0,0.00015078]
[1760128144595,8.02099412,117300.0,117290.0,0.00015078]
[1760128144794,8.02199412,117300.0,117290.0,0.00015078]
[1760128145023,8.03728841,117300.0,117290.0,0.00015078]
[1760128145495,7.99034156,117300.0,117290.0,0.00015078]
[1760128145895,7.99234156,117300.0,117290.0,0.00015078]
[1760128146092,8.0380643,117300.0,117290.0,0.00015078]
[1760128146297,7.99234156,117300.0,117290.0,0.00015078]
[1760128146917,6.94962156,117300.0,117290.0,0.00015078]
[1760128147163,8.00047688,117300.0,117290.0,0.00015078]
[1760128147359,0.34,117290.0,117250.0,0.27049907]
[1760128147570,0.8037805,117260.0,117250.0,0.29807153]
[1760128147783,1.42094087,117260.0,117250.0,0.09154584]
[1760128148048,1.42094087,117260.0,117250.0,0.23692153]
[1760128148247,1.46760847,117260.0,117250.0,0.27287153]
[1760128148506,1.50620885,117260.0,117250.0,0.13746393]
[1760128148719,1.50620885,117260.0,117250.0,0.20652569]
[1760128149164,0.85642369,117260.0,117250.0,0.28174569]
[1760128149355,0.79122835,117260.0,117250.0,0.28174569]
[1760128149655,0.10358835,117260.0,117250.0,0.33034266]
[1760128149898,0.79122835,117260.0,117250.0,0.33034266]
[1760128150107,0.79122835,117260.0,117250.0,0.28174569]
[1760128150313,0.73077311,117260.0,117250.0,0.18946645]
[1760128150523,0.73077311,117260.0,117250.0,0.22541645]
[1760128150661,0.64197311,117260.0,117250.0,0.22541645]
[1760128150867,0.73077311,117260.0,117250.0,0.22541645]
[1760128151287,0.11980398,117260.0,117250.0,0.38165445]
[1760128151483,0.80756398,117260.0,117250.0,0.38165445]
[1760128151864,0.11980398,117260.0,117250.0,0.38165445]
[1760128152065,0.73089311,117260.0,117250.0,0.38165445]
[1760128152367,0.79076348,117260.0,117250.0,0.33869041]
[1760128152584,0.77488832,117260.0,117250.0,0.33869041]
[1760128154223,0.77588832,117260.0,117250.0,0.33869041]
[1760128154433,0.08812832,117260.0,117250.0,0.33869041]
[1760128154636,0.77488832,117260.0,117250.0,0.33869041]
[1760128157296,0.79076186,117260.0,117250.0,0.33869041]
[1760128158440,0.10300186,117260.0,117250.0,0.26948552]
[1760128158654,1.60472255,117260.0,117250.0,0.15621156]
[1760128158863,1.55732199,117260.0,117250.0,0.06115]
[1760128159069,1.55732199,117260.0,117250.0,0.23172569]
[1760128159272,1.6183394,117260.0,117250.0,0.23172569]
[1760128159715,1.5945694,117260.0,117250.0,0.23172569]
[1760128159834,1.5945694,117260.0,117250.0,0.28174569]
[1760128160044,1.59457682,117260.0,117250.0,0.28174569]
[1760128160268,1.53355941,117260.0,117250.0,0.28174569]
[1760128160512,1.5946245,117260.0,117250.0,0.25061615]
[1760128160679,1.6272445,117260.0,117250.0,0.20059615]
[1760128160879,0.823464,117260.0,117250.0,0.20059615]
[1760128161292,0.811224,117260.0,117250.0,0.20059615]
[1760128161724,0.811224,117260.0,117250.0,0.25061615]
[1760128162136,0.103204,117260.0,117250.0,0.25061615]
[1760128162349,0.790724,117260.0,117250.0,0.20447763]
[1760128162561,0.72965891,117260.0,117250.0,0.20447763]
[1760128163173,0.04213891,117260.0,117250.0,0.20447763]
[1760128163382,0.72969891,117260.0,117250.0,0.20447763]
[1760128164631,0.71382537,117260.0,117250.0,0.20447763]
[1760128165046,0.26954537,117260.0,117250.0,0.20447763]
[1760128165258,0.71378537,117260.0,117250.0,0.20447763]
[1760128165681,0.02626537,117260.0,117250.0,0.20447763]
[1760128165894,0.5163539,117260.0,117250.0,0.65775159]
[1760128166106,0.7596339,117260.0,117250.0,0.65775159]
[1760128166319,0.0721139,117260.0,117250.0,0.65775159]
[1760128166530,0.4042339,117260.0,117250.0,0.65775159]
[1760128167182,0.38896169,117260.0,117250.0,0.65875159]
[1760128167620,0.38896169,117260.0,117250.0,0.65775159]
[1760128168252,0.38132627,117260.0,117250.0,0.65775159]
[1760128168457,0.05684169,117260.0,117250.0,0.74199404]
[1760128168673,0.11943705,117270.0,117260.0,0.20071304]
[1760128168886,0.23305258,117270.0,117260.0,0.3954151]
[1760128169099,0.20946608,117270.0,117260.0,0.3954151]
[1760128169303,0.22540661,117270.0,117260.0,0.419839]
[1760128169505,0.20246053,117270.0,117260.0,0.419839]
[1760128169724,0.18652,117270.0,117260.0,0.419839]
[1760128170588,0.18652,117270.0,117260.0,0.420839]
[1760128170808,0.18652,117270.0,117260.0,0.419839]
[1760128171058,0.18652,117270.0,117260.0,0.420839]
[1760128172194,0.20247173,117270.0,117260.0,0.420839]
[1760128174131,0.22541781,117270.0,117260.0,0.420839]
[1760128174561,0.22542494,117270.0,117260.0,0.420839]
[1760128174772,0.20946608,117270.0,117260.0,0.420839]
[1760128175186,0.20248274,117270.0,117260.0,0.420839]
[1760128175411,0.22542882,117270.0,117260.0,0.420839]
[1760128176084,0.20248274,117270.0,117260.0,0.420839]
[1760128176766,0.33204,117270.0,117260.0,0.95923809]
[1760128177236,0.35498608,117270.0,117260.0,0.95923809]
[1760128178732,0.35498608,117270.0,117260.0,0.95823809]
[1760128179157,0.35498608,117270.0,117260.0,0.420839]
[1760128179393,0.35498608,117270.0,117260.0,0.419839]
[1760128179614,0.35498608,117270.0,117260.0,0.420839]
[1760128180066,0.35498608,117270.0,117260.0,0.48731588]
[1760128180275,0.37788853,117270.0,117260.0,0.48731588]
[1760128180497,0.38587398,117270.0,117260.0,0.48731588]
[1760128180702,0.35842415,117270.0,117260.0,0.3974151]
[1760128181110,0.40442295,117270.0,117260.0,0.3974151]
[1760128183253,0.35842415,117270.0,117260.0,0.3974151]
[1760128183456,0.38142454,117270.0,117260.0,0.3974151]
[1760128184230,0.40442295,117270.0,117260.0,0.3974151]
[1760128184667,0.40442295,117270.0,117260.0,0.48165755]
[1760128185028,0.35842415,117270.0,117260.0,0.48165755]
[1760128185442,0.38142504,117270.0,117260.0,0.48165755]
[1760128186257,0.35842415,117270.0,117260.0,0.48165755]
[1760128186457,0.26950415,117270.0,117260.0,0.48165755]
[1760128186659,0.35830415,117270.0,117260.0,0.48165755]
[1760128187303,0.33192,117270.0,117260.0,0.48065755]
[1760128188025,0.56139998,117290.0,117280.0,0.17053206]
[1760128188238,1.25202736,117290.0,117280.0,0.28211206]
[1760128189250,1.27502825,117290.0,117280.0,0.28211206]
[1760128189498,1.24404061,117290.0,117280.0,0.28211206]
[1760128190851,0.02038,117300.0,117290.0,0.17051752]
[1760128191080,1.27241647,117300.0,117290.0,0.19500752]
[1760128191306,1.32771736,117300.0,117290.0,0.23070752]
[1760128191524,1.30471647,117300.0,117290.0,0.23070752]
[1760128191756,0.02639738,117300.0,117290.0,0.28021752]
[1760128192222,0.65955738,117300.0,117290.0,0.36333958]
[1760128192846,0.63316,117300.0,117290.0,0.36333958]
[1760128193281,0.65157302,117300.0,117290.0,0.36333958]
[1760128193497,0.63316,117300.0,117290.0,0.36333958]
[1760128197402,0.53839909,117310.0,117300.0,0.17050298]
[1760128197622,0.04228444,117320.0,117310.0,0.17048844]
[1760128197845,0.76996649,117320.0,117310.0,0.17048844]
[1760128198066,0.76197508,117320.0,117310.0,0.17048844]
[1760128198508,0.76996711,117320.0,117310.0,0.17048844]
[1760128198923,1.3083662,117320.0,117310.0,0.17048844]
[1760128199133,1.30037417,117320.0,117310.0,0.16948844]
[1760128199565,1.37552707,117320.0,117310.0,0.16948844]
[1760128199781,0.04076254,117320.0,117310.0,0.22935844]
[1760128200006,1.35397263,117320.0,117310.0,0.28052844]
[1760128200234,1.34598073,117320.0,117310.0,0.28052844]
[1760128200720,0.46589528,117320.0,117310.0,0.44135454]
[1760128200936,0.68831064,117320.0,117310.0,0.44135454]
[1760128201139,0.68831064,117320.0,117310.0,0.3938024]
[1760128201352,1.29287073,117320.0,117310.0,0.3938024]
[1760128201798,1.34862911,117320.0,117310.0,0.05987]
[1760128202091,2.0264092,117320.0,117290.0,0.19500476]
[1760128202321,1.22598018,117300.0,117280.0,0.02568]
[1760128202534,0.95801009,117290.0,117280.0,0.19621206]
[1760128203009,0.99063009,117290.0,117280.0,0.23054206]
[1760128203261,1.04247009,117290.0,117270.0,0.2046008]
[1760128203469,0.96084009,117280.0,117270.0,0.2046008]
[1760128203674,0.96084009,117280.0,117270.0,0.2901008]
[1760128204641,0.84872009,117280.0,117270.0,0.2901008]
[1760128204866,2.00320018,117280.0,117260.0,0.02554]
[1760128205083,0.79208,117280.0,117270.0,0.001]
[1760128205513,0.79208,117280.0,117270.0,0.002]
[1760128205726,0.79208,117280.0,117270.0,0.001]
[1760128205976,0.873333,117280.0,117260.0,5.025e-05]
[1760128206187,0.01916,117270.0,117260.0,5.025e-05]
[1760128206406,0.59308982,117270.0,117260.0,5.025e-05]
[1760128206632,0.67754982,117270.0,117260.0,5.025e-05]
[1760128207060,1.72014982,117270.0,117260.0,5.025e-05]
[1760128207290,0.72337522,117270.0,117260.0,5.025e-05]
[1760128207512,1.76609522,117270.0,117260.0,5.025e-05]
[1760128207722,0.72337522,117270.0,117260.0,5.025e-05]
[1760128207947,1.76609522,117270.0,117260.0,5.025e-05]
[1760128208803,6.02773522,117270.0,117260.0,5.025e-05]
[1760128209025,7.07045522,117270.0,117260.0,5.025e-05]
[1760128209907,7.28165522,117270.0,117260.0,5.025e-05]
[1760128210130,7.37045522,117270.0,117260.0,5.025e-05]
[1760128210341,7.54100182,117270.0,117260.0,5.025e-05]
[1760128210568,6.34938875,117270.0,117260.0,5.025e-05]
[1760128210785,7.39222875,117270.0,117260.0,5.025e-05]
[1760128211232,7.86277535,117270.0,117260.0,5.025e-05]
[1760128211438,7.69218875,117270.0,117260.0,5.025e-05]
[1760128212115,6.64938875,117270.0,117260.0,5.025e-05]
[1760128212324,7.34640335,117270.0,117260.0,5.025e-05]
[1760128212991,6.30356335,117270.0,117260.0,5.025e-05]
[1760128213422,6.90216335,117270.0,117260.0,5.025e-05]
[1760128213633,7.34636335,117270.0,117260.0,5.025e-05]
[1760128213873,7.4306058,117270.0,117260.0,5.025e-05]
[1760128214093,6.3878058,117270.0,117260.0,5.025e-05]
[1760128214307,7.3418458,117270.0,117260.0,5.025e-05]
[1760128214546,8.47516222,117270.0,117260.0,5.025e-05]
[1760128214769,8.58811043,117270.0,117260.0,5.025e-05]
[1760128214997,8.54630146,117270.0,117260.0,5.025e-05]
[1760128215225,8.56466846,117270.0,117260.0,5.025e-05]
[1760128215434,8.58766935,117270.0,117260.0,5.025e-05]
[1760128215672,7.55272114,117270.0,117260.0,5.025e-05]
[1760128215900,8.35236114,117270.0,117260.0,5.025e-05]
[1760128216122,6.51639609,117270.0,117260.0,5.025e-05]
[1760128216547,7.5515043,117270.0,117260.0,5.025e-05]
[1760128216754,8.13340349,117270.0,117260.0,5.025e-05]
[1760128216979,8.13440349,117270.0,117260.0,5.025e-05]
[1760128217205,8.21864594,117270.0,117260.0,5.025e-05]
[1760128217628,7.20122335,117270.0,117260.0,5.025e-05]
[1760128217843,8.24442335,117270.0,117260.0,5.025e-05]
[1760128218059,7.80010335,117270.0,117260.0,5.025e-05]
[1760128218277,8.27453525,117270.0,117260.0,5.025e-05]
[1760128218498,8.29953524,117270.0,117260.0,5.025e-05]
[1760128218711,8.31291415,117270.0,117260.0,5.025e-05]
[1760128218917,8.33591504,117270.0,117260.0,5.025e-05]
[1760128220966,8.30576314,117270.0,117260.0,5.025e-05]
[1760128221196,0.17059702,117240.0,117220.0,0.01851261]
[1760128221402,7.44598461,117230.0,117220.0,0.01901572]
[1760128221692,7.46433244,117230.0,117220.0,0.01901572]
[1760128221894,7.47771469,117230.0,117220.0,0.01901572]
[1760128222720,7.54281791,117230.0,117220.0,0.01901572]
[1760128222929,6.7907763,117230.0,117220.0,0.01901572]
[1760128223149,7.80902612,117230.0,117220.0,0.01901572]
[1760128223353,7.97963091,117230.0,117220.0,0.01901572]
[1760128224423,7.42863449,117230.0,117220.0,0.01901572]
[1760128224640,7.89837791,117230.0,117220.0,0.01901572]
[1760128224870,7.48445312,117230.0,117220.0,0.01901572]
[1760128225077,7.89845791,117230.0,117220.0,0.01901572]
[1760128225336,7.0650433,117230.0,117220.0,0.01901572]
[1760128225545,7.81209557,117230.0,117220.0,0.01901572]
[1760128225758,5.89484575,117230.0,117220.0,0.01901572]
[1760128225972,5.89484575,117230.0,117220.0,0.05334572]
[1760128225973,1.5378033,117230.0,117220.0,0.05334572]
[1760128226179,0.53286105,117230.0,117220.0,0.01901572]